[Event "Titled Tuesday Blitz November 16 2021"]
[White "Koellner, Ruben Gideon"]
[Black "Rozman, Levy"]
[WhiteFideId "12993093"]
[BlackFideId "2039877"]
[WhiteElo "2571"]
[BlackElo "2376"]
[Result "0-1"]
[Round "10"]
[TimeControl "180+1"]
[Date "2021.11.16"]
[WhiteClock "0:00:01"]
[BlackClock "0:00:10"]

1. d4 {[%clk 0:02:58]}  Nf6 {[%clk 0:02:56]} 2. Bg5 {[%clk 0:02:56]}  e6 {[%clk 0:02:54]} 3. Nd2 {[%clk 0:02:54]}  h6 {[%clk 0:02:53]} 4. Bh4 {[%clk 0:02:50]}  c5 {[%clk 0:02:53]} 5. e4 {[%clk 0:02:46]}  d5 {[%clk 0:02:53]} 6. e5 {[%clk 0:02:43]}  g5 {[%clk 0:02:52]} 7. Bg3 {[%clk 0:02:42]}  Nfd7 {[%clk 0:02:51]} 8. h4 {[%clk 0:02:31]}  g4 {[%clk 0:02:47]} 9. Qxg4 {[%clk 0:02:25]}  h5 {[%clk 0:02:44]} 10. Qf3 {[%clk 0:02:18]}  Nc6 {[%clk 0:02:40]} 11. c3 {[%clk 0:01:33]}  cxd4 {[%clk 0:02:31]} 12. cxd4 {[%clk 0:01:33]}  Bh6 {[%clk 0:02:17]} 13. Qd3 {[%clk 0:01:23]}  b6 {[%clk 0:02:11]} 14. Ngf3 {[%clk 0:01:15]}  a5 {[%clk 0:02:07]} 15. Qc3 {[%clk 0:00:54]}  Bb7 {[%clk 0:02:03]} 16. Bb5 {[%clk 0:00:49]}  Rc8 {[%clk 0:02:02]} 17. Qb3 {[%clk 0:00:47]}  Bxd2+ {[%clk 0:01:55]} 18. Kxd2 {[%clk 0:00:44]}  Rg8 {[%clk 0:01:39]} 19. Rac1 {[%clk 0:00:39]}  Rg4 {[%clk 0:01:39]} 20. Qe3 {[%clk 0:00:27]}  Qe7 {[%clk 0:01:36]} 21. a3 {[%clk 0:00:24]}  Qf8 {[%clk 0:01:31]} 22. Bf4 {[%clk 0:00:19]}  Na7 {[%clk 0:01:25]} 23. Bd3 {[%clk 0:00:16]}  b5 {[%clk 0:01:18]} 24. g3 {[%clk 0:00:15]}  Nb6 {[%clk 0:01:18]} 25. Rxc8+ {[%clk 0:00:13]}  Bxc8 {[%clk 0:01:18]} 26. Ke2 {[%clk 0:00:11]}  Nc4 {[%clk 0:01:18]} 27. Bxc4 {[%clk 0:00:10]}  bxc4 {[%clk 0:01:18]} 28. Kf1 {[%clk 0:00:10]}  Qe7 {[%clk 0:01:11]} 29. Kg2 {[%clk 0:00:10]}  Qb7 {[%clk 0:01:12]} 30. Qd2 {[%clk 0:00:09]}  Nc6 {[%clk 0:01:12]} 31. Ng5 {[%clk 0:00:08]}  a4 {[%clk 0:01:03]} 32. f3 {[%clk 0:00:07]}  Rxf4 {[%clk 0:01:03]} 33. gxf4 {[%clk 0:00:07]}  Qb6 {[%clk 0:01:03]} 34. Rd1 {[%clk 0:00:08]}  Ne7 {[%clk 0:01:03]} 35. Nh7 {[%clk 0:00:05]}  Nf5 {[%clk 0:01:03]} 36. Nf6+ {[%clk 0:00:06]}  Kf8 {[%clk 0:01:02]} 37. Kf2 {[%clk 0:00:06]}  Nxh4 {[%clk 0:00:50]} 38. Qb4+ {[%clk 0:00:06]}  Qxb4 {[%clk 0:00:50]} 39. axb4 {[%clk 0:00:07]}  Nf5 {[%clk 0:00:50]} 40. b5 {[%clk 0:00:06]}  Ke7 {[%clk 0:00:50]} 41. b6 {[%clk 0:00:06]}  Kd8 {[%clk 0:00:46]} 42. Ke2 {[%clk 0:00:05]}  Ba6 {[%clk 0:00:43]} 43. Kf2 {[%clk 0:00:04]}  Kc8 {[%clk 0:00:43]} 44. Nxh5 {[%clk 0:00:03]}  Kb7 {[%clk 0:00:43]} 45. Ng3 {[%clk 0:00:04]}  Ne7 {[%clk 0:00:43]} 46. Nf1 {[%clk 0:00:03]}  Kxb6 {[%clk 0:00:42]} 47. Ne3 {[%clk 0:00:04]}  Nc6 {[%clk 0:00:43]} 48. Nc2 {[%clk 0:00:03]}  Kb5 {[%clk 0:00:42]} 49. Ke3 {[%clk 0:00:03]}  Ka5 {[%clk 0:00:41]} 50. Ne1 {[%clk 0:00:03]}  Kb4 {[%clk 0:00:41]} 51. Ra1 {[%clk 0:00:03]}  Kb3 {[%clk 0:00:40]} 52. Ra3+ {[%clk 0:00:03]}  Kb4 {[%clk 0:00:38]} 53. Nc2+ {[%clk 0:00:03]}  Kb5 {[%clk 0:00:39]} 54. Kd2 {[%clk 0:00:01]}  Bb7 {[%clk 0:00:39]} 55. Kc3 {[%clk 0:00:02]}  Ne7 {[%clk 0:00:37]} 56. Ra1 {[%clk 0:00:02]}  Ng6 {[%clk 0:00:35]} 57. Rh1 {[%clk 0:00:03]}  Nxf4 {[%clk 0:00:35]} 58. Rh7 {[%clk 0:00:03]}  Ne2+ {[%clk 0:00:32]} 59. Kd2 {[%clk 0:00:03]}  Ng3 {[%clk 0:00:30]} 60. Rxf7 {[%clk 0:00:03]}  Bc6 {[%clk 0:00:31]} 61. Kc3 {[%clk 0:00:03]}  Ne2+ {[%clk 0:00:29]} 62. Kd2 {[%clk 0:00:03]}  Ng3 {[%clk 0:00:30]} 63. Rg7 {[%clk 0:00:02]}  Nf5 {[%clk 0:00:30]} 64. Rf7 {[%clk 0:00:01]}  Kb6 {[%clk 0:00:27]} 65. Rf6 {[%clk 0:00:02]}  Bd7 {[%clk 0:00:27]} 66. f4 {[%clk 0:00:03]}  Ng3 {[%clk 0:00:27]} 67. Kc3 {[%clk 0:00:03]}  Ne4+ {[%clk 0:00:28]} 68. Kb4 {[%clk 0:00:03]}  Nf2 {[%clk 0:00:16]} 69. Rh6 {[%clk 0:00:02]}  Nd3+ {[%clk 0:00:16]} 70. Kc3 {[%clk 0:00:03]}  Nxf4 {[%clk 0:00:16]} 71. Na3 {[%clk 0:00:03]}  Ne2+ {[%clk 0:00:16]} 72. Kd2 {[%clk 0:00:02]}  Nxd4 {[%clk 0:00:17]} 73. Kc3 {[%clk 0:00:03]}  Nc6 {[%clk 0:00:15]} 74. Nc2 {[%clk 0:00:02]}  Kc5 {[%clk 0:00:15]} 75. Rh4 {[%clk 0:00:02]}  Nxe5 {[%clk 0:00:15]} 76. Nd4 {[%clk 0:00:02]}  Nc6 {[%clk 0:00:12]} 77. Nxc6 {[%clk 0:00:01]}  Bxc6 {[%clk 0:00:13]} 78. Rh8 {[%clk 0:00:01]}  d4+ {[%clk 0:00:13]} 79. Kd2 {[%clk 0:00:01]}  e5 {[%clk 0:00:13]} 80. Rd8 {[%clk 0:00:01]}  a3 {[%clk 0:00:10]} 0-1


[Site "https://www.chess.com"]

[Event "Titled Tuesday Blitz November 16 2021"]
[White "Llorente Zaro, Alfonso"]
[Black "Sieciechowicz, Marcin"]
[WhiteFideId "2254131"]
[BlackFideId "1130170"]
[WhiteElo "2480"]
[BlackElo "2295"]
[Result "1-0"]
[Round "10"]
[TimeControl "180+1"]
[Date "2021.11.16"]
[WhiteClock "0:00:11"]
[BlackClock "0:00:12"]

1. e4 {[%clk 0:02:59]}  e6 {[%clk 0:03:00]} 2. Nc3 {[%clk 0:02:59]}  d5 {[%clk 0:03:00]} 3. d4 {[%clk 0:02:59]}  Nf6 {[%clk 0:02:59]} 4. Bd3 {[%clk 0:02:56]}  c5 {[%clk 0:02:43]} 5. dxc5 {[%clk 0:02:52]}  dxe4 {[%clk 0:02:41]} 6. Nxe4 {[%clk 0:02:53]}  Nxe4 {[%clk 0:02:41]} 7. Bxe4 {[%clk 0:02:54]}  Qxd1+ {[%clk 0:02:41]} 8. Kxd1 {[%clk 0:02:54]}  Bxc5 {[%clk 0:02:42]} 9. Ke2 {[%clk 0:02:55]}  O-O {[%clk 0:02:42]} 10. Nf3 {[%clk 0:02:53]}  Nd7 {[%clk 0:02:41]} 11. Rd1 {[%clk 0:02:45]}  Nf6 {[%clk 0:02:40]} 12. Bd3 {[%clk 0:02:45]}  b6 {[%clk 0:02:39]} 13. Be3 {[%clk 0:02:25]}  Bxe3 {[%clk 0:02:37]} 14. Kxe3 {[%clk 0:02:26]}  Bb7 {[%clk 0:02:37]} 15. c4 {[%clk 0:02:23]}  e5 {[%clk 0:02:25]} 16. Bc2 {[%clk 0:01:53]}  Ng4+ {[%clk 0:02:16]} 17. Ke2 {[%clk 0:01:52]}  e4 {[%clk 0:01:54]} 18. Nd4 {[%clk 0:01:29]}  Nxh2 {[%clk 0:01:23]} 19. Nf5 {[%clk 0:01:28]}  Ng4 {[%clk 0:01:19]} 20. Rd7 {[%clk 0:01:19]}  Rab8 {[%clk 0:00:58]} 21. Nd6 {[%clk 0:01:14]}  Bc6 {[%clk 0:00:34]} 22. Rc7 {[%clk 0:01:08]}  Ne5 {[%clk 0:00:34]} 23. Rd1 {[%clk 0:01:01]}  f5 {[%clk 0:00:30]} 24. b4 {[%clk 0:00:58]}  f4 {[%clk 0:00:13]} 25. Rd4 {[%clk 0:00:42]}  f3+ {[%clk 0:00:13]} 26. gxf3 {[%clk 0:00:38]}  Nxf3 {[%clk 0:00:12]} 27. Rd1 {[%clk 0:00:33]}  Ba8 {[%clk 0:00:12]} 28. Bb3 {[%clk 0:00:26]}  h6 {[%clk 0:00:11]} 29. c5+ {[%clk 0:00:24]}  Kh7 {[%clk 0:00:11]} 30. c6 {[%clk 0:00:24]}  Rbd8 {[%clk 0:00:10]} 31. b5 {[%clk 0:00:23]}  a6 {[%clk 0:00:10]} 32. a4 {[%clk 0:00:23]}  axb5 {[%clk 0:00:10]} 33. axb5 {[%clk 0:00:24]}  Ne5 {[%clk 0:00:10]} 34. Rg1 {[%clk 0:00:14]}  Ng6 {[%clk 0:00:04]} 35. Nxe4 {[%clk 0:00:14]}  Rde8 {[%clk 0:00:03]} 36. f3 {[%clk 0:00:13]}  Nf4+ {[%clk 0:00:02]} 37. Kd2 {[%clk 0:00:13]}  Nh5 {[%clk 0:00:03]} 38. Bd5 {[%clk 0:00:10]}  Re5 {[%clk 0:00:03]} 39. Nc3 {[%clk 0:00:09]}  Rg5 {[%clk 0:00:02]} 40. Be4+ {[%clk 0:00:09]}  Kh8 {[%clk 0:00:02]} 41. Rxg5 {[%clk 0:00:09]}  hxg5 {[%clk 0:00:03]} 42. Nd5 {[%clk 0:00:10]}  Nf6 {[%clk 0:00:04]} 43. Nxf6 {[%clk 0:00:09]}  gxf6 {[%clk 0:00:04]} 44. Rh7+ {[%clk 0:00:07]}  Kg8 {[%clk 0:00:04]} 45. Ra7 {[%clk 0:00:08]}  f5 {[%clk 0:00:04]} 46. Bd5+ {[%clk 0:00:08]}  Kh8 {[%clk 0:00:05]} 47. Be6 {[%clk 0:00:08]}  g4 {[%clk 0:00:05]} 48. fxg4 {[%clk 0:00:07]}  fxg4 {[%clk 0:00:06]} 49. Bxg4 {[%clk 0:00:07]}  Rd8+ {[%clk 0:00:06]} 50. Kc3 {[%clk 0:00:06]}  Kg8 {[%clk 0:00:07]} 51. Rxa8 {[%clk 0:00:05]}  Rxa8 {[%clk 0:00:07]} 52. c7 {[%clk 0:00:06]}  Kf7 {[%clk 0:00:07]} 53. c8=Q {[%clk 0:00:07]}  Rxc8+ {[%clk 0:00:07]} 54. Bxc8 {[%clk 0:00:07]}  Ke7 {[%clk 0:00:07]} 55. Kd4 {[%clk 0:00:08]}  Kd6 {[%clk 0:00:08]} 56. Bg4 {[%clk 0:00:08]}  Kc7 {[%clk 0:00:08]} 57. Ke5 {[%clk 0:00:09]}  Kb8 {[%clk 0:00:09]} 58. Kd6 {[%clk 0:00:09]}  Ka8 {[%clk 0:00:10]} 59. Kc7 {[%clk 0:00:10]}  Ka7 {[%clk 0:00:10]} 60. Kc6 {[%clk 0:00:10]}  Ka8 {[%clk 0:00:10]} 61. Kxb6 {[%clk 0:00:11]}  Kb8 {[%clk 0:00:11]} 62. Ka6 {[%clk 0:00:11]}  Ka8 {[%clk 0:00:11]} 63. b6 {[%clk 0:00:11]}  Kb8 {[%clk 0:00:11]} 64. Bh3 {[%clk 0:00:12]}  Ka8 {[%clk 0:00:11]} 65. b7+ {[%clk 0:00:10]}  Kb8 {[%clk 0:00:12]} 66. Bg4 {[%clk 0:00:10]}  Kc7 {[%clk 0:00:12]} 67. Ka7 {[%clk 0:00:11]} 1-0


[Site "https://www.chess.com"]

[Event "Titled Tuesday Blitz November 16 2021"]
[White "Manafov, Vugar"]
[Black "Al-Tarboush, Ward"]
[WhiteFideId "13410814"]
[BlackFideId "7601450"]
[WhiteElo "2277"]
[BlackElo "2276"]
[Result "1-0"]
[Round "10"]
[TimeControl "180+1"]
[Date "2021.11.16"]
[WhiteClock "0:02:29"]
[BlackClock "0:01:23"]

1. d4 {[%clk 0:03:00]}  e6 {[%clk 0:03:00]} 2. c4 {[%clk 0:03:01]}  b6 {[%clk 0:03:00]} 3. Nc3 {[%clk 0:03:01]}  Bb7 {[%clk 0:02:59]} 4. e4 {[%clk 0:03:01]}  Bb4 {[%clk 0:02:54]} 5. Qc2 {[%clk 0:03:01]}  Ne7 {[%clk 0:02:53]} 6. Bd3 {[%clk 0:03:00]}  Ng6 {[%clk 0:02:52]} 7. Ne2 {[%clk 0:03:00]}  O-O {[%clk 0:02:48]} 8. O-O {[%clk 0:03:00]}  f6 {[%clk 0:02:48]} 9. a3 {[%clk 0:02:59]}  Be7 {[%clk 0:02:46]} 10. f4 {[%clk 0:02:59]}  Nc6 {[%clk 0:02:34]} 11. Be3 {[%clk 0:02:55]}  Qe8 {[%clk 0:02:23]} 12. b4 {[%clk 0:02:53]}  e5 {[%clk 0:02:11]} 13. d5 {[%clk 0:02:50]}  exf4 {[%clk 0:02:10]} 14. dxc6 {[%clk 0:02:50]}  fxe3 {[%clk 0:02:08]} 15. cxb7 {[%clk 0:02:50]}  Rb8 {[%clk 0:02:06]} 16. Nd5 {[%clk 0:02:50]}  Bd6 {[%clk 0:02:05]} 17. Nxe3 {[%clk 0:02:47]}  Nh4 {[%clk 0:02:00]} 18. Nf5 {[%clk 0:02:44]}  Qh5 {[%clk 0:01:52]} 19. Nxd6 {[%clk 0:02:42]}  cxd6 {[%clk 0:01:53]} 20. Nf4 {[%clk 0:02:42]}  Qg5 {[%clk 0:01:49]} 21. Qf2 {[%clk 0:02:37]}  Rxb7 {[%clk 0:01:48]} 22. Qg3 {[%clk 0:02:37]}  Qh6 {[%clk 0:01:46]} 23. Nd5 {[%clk 0:02:37]}  Rbb8 {[%clk 0:01:41]} 24. Qxd6 {[%clk 0:02:37]}  Rbe8 {[%clk 0:01:38]} 25. Qf4 {[%clk 0:02:36]}  g5 {[%clk 0:01:36]} 26. Qg3 {[%clk 0:02:36]}  Qg7 {[%clk 0:01:23]} 27. Ra2 {[%clk 0:02:33]}  Ng6 {[%clk 0:01:22]} 28. Raf2 {[%clk 0:02:33]}  Re6 {[%clk 0:01:23]} 29. c5 {[%clk 0:02:29]}  bxc5 {[%clk 0:01:22]} 30. Bc4 {[%clk 0:02:30]}  Ne5 {[%clk 0:01:23]} 31. Nxf6+ {[%clk 0:02:29]} 1-0


[Site "https://www.chess.com"]

[Event "Titled Tuesday Blitz November 16 2021"]
[White "Matinian, Nikita"]
[Black "Ozen, Bahadir"]
[WhiteFideId "24129100"]
[BlackFideId "6337058"]
[WhiteElo "2422"]
[BlackElo "2503"]
[Result "1-0"]
[Round "10"]
[TimeControl "180+1"]
[Date "2021.11.16"]
[WhiteClock "0:00:12"]
[BlackClock "0:00:02"]

1. e4 {[%clk 0:03:00]}  c6 {[%clk 0:03:00]} 2. Nc3 {[%clk 0:03:00]}  d5 {[%clk 0:03:00]} 3. Nf3 {[%clk 0:03:01]}  Bg4 {[%clk 0:02:59]} 4. h3 {[%clk 0:03:01]}  Bxf3 {[%clk 0:02:59]} 5. Qxf3 {[%clk 0:03:02]}  Nf6 {[%clk 0:02:59]} 6. g3 {[%clk 0:03:01]}  e6 {[%clk 0:02:50]} 7. Bg2 {[%clk 0:03:00]}  Bb4 {[%clk 0:02:40]} 8. O-O {[%clk 0:03:00]}  O-O {[%clk 0:02:36]} 9. e5 {[%clk 0:02:45]}  Nfd7 {[%clk 0:02:35]} 10. d4 {[%clk 0:02:44]}  c5 {[%clk 0:02:34]} 11. a3 {[%clk 0:02:41]}  Ba5 {[%clk 0:02:23]} 12. dxc5 {[%clk 0:02:39]}  Nxe5 {[%clk 0:02:23]} 13. Qe2 {[%clk 0:02:34]}  Bxc3 {[%clk 0:02:05]} 14. bxc3 {[%clk 0:02:35]}  Nbd7 {[%clk 0:02:05]} 15. Bf4 {[%clk 0:02:32]}  Nc4 {[%clk 0:02:00]} 16. h4 {[%clk 0:02:32]}  Nxc5 {[%clk 0:01:58]} 17. h5 {[%clk 0:02:32]}  h6 {[%clk 0:01:51]} 18. Rfd1 {[%clk 0:02:31]}  Qf6 {[%clk 0:01:50]} 19. Rd4 {[%clk 0:02:20]}  Rac8 {[%clk 0:01:44]} 20. a4 {[%clk 0:02:15]}  e5 {[%clk 0:01:40]} 21. Rxd5 {[%clk 0:01:59]}  exf4 {[%clk 0:01:39]} 22. Qxc4 {[%clk 0:01:59]}  fxg3 {[%clk 0:01:38]} 23. fxg3 {[%clk 0:01:55]}  Ne6 {[%clk 0:01:37]} 24. Qg4 {[%clk 0:01:34]}  Qxc3 {[%clk 0:01:25]} 25. Rf1 {[%clk 0:01:32]}  Qe3+ {[%clk 0:01:23]} 26. Kh1 {[%clk 0:01:28]}  Rxc2 {[%clk 0:01:22]} 27. Rd7 {[%clk 0:01:24]}  Ng5 {[%clk 0:01:18]} 28. Qd1 {[%clk 0:00:59]}  Rc5 {[%clk 0:01:02]} 29. Rd3 {[%clk 0:00:58]}  Qe5 {[%clk 0:00:57]} 30. Bxb7 {[%clk 0:00:54]}  a5 {[%clk 0:00:49]} 31. Re1 {[%clk 0:00:36]}  Qc7 {[%clk 0:00:38]} 32. Bg2 {[%clk 0:00:36]}  Rc3 {[%clk 0:00:37]} 33. Kh2 {[%clk 0:00:21]}  Nh7 {[%clk 0:00:33]} 34. Re4 {[%clk 0:00:18]}  Nf6 {[%clk 0:00:31]} 35. Rh4 {[%clk 0:00:17]}  Rxd3 {[%clk 0:00:30]} 36. Qxd3 {[%clk 0:00:18]}  Rd8 {[%clk 0:00:30]} 37. Qb5 {[%clk 0:00:18]}  Rd2 {[%clk 0:00:26]} 38. Rc4 {[%clk 0:00:18]}  Qd8 {[%clk 0:00:16]} 39. Qb7 {[%clk 0:00:14]}  Ng4+ {[%clk 0:00:08]} 40. Rxg4 {[%clk 0:00:13]}  Qf6 {[%clk 0:00:02]} 41. Qa8+ {[%clk 0:00:11]}  Rd8 {[%clk 0:00:03]} 42. Qe4 {[%clk 0:00:11]}  Rc8 {[%clk 0:00:02]} 43. Rf4 {[%clk 0:00:11]}  Qg5 {[%clk 0:00:01]} 44. Rf5 {[%clk 0:00:12]}  Rf8 {[%clk 0:00:02]} 45. Rxg5 {[%clk 0:00:12]} 1-0


[Site "https://www.chess.com"]

[Event "Titled Tuesday Blitz November 16 2021"]
[White "Narayanan, Srinath"]
[Black "Filippova, Margarita"]
[WhiteFideId "5018420"]
[BlackFideId "34199680"]
[WhiteElo "2472"]
[BlackElo "1793"]
[Result "1-0"]
[Round "10"]
[TimeControl "180+1"]
[Date "2021.11.16"]
[WhiteClock "0:00:28"]
[BlackClock "0:01:05"]

1. Nf3 {[%clk 0:03:00]}  d5 {[%clk 0:02:49]} 2. e3 {[%clk 0:02:59]}  Nf6 {[%clk 0:02:49]} 3. c4 {[%clk 0:03:00]}  c6 {[%clk 0:02:48]} 4. b3 {[%clk 0:03:00]}  Nbd7 {[%clk 0:02:48]} 5. Bb2 {[%clk 0:03:00]}  e6 {[%clk 0:02:48]} 6. d4 {[%clk 0:03:01]}  Be7 {[%clk 0:02:48]} 7. Nc3 {[%clk 0:03:02]}  O-O {[%clk 0:02:49]} 8. Bd3 {[%clk 0:03:02]}  Re8 {[%clk 0:02:47]} 9. O-O {[%clk 0:03:02]}  Nf8 {[%clk 0:02:47]} 10. e4 {[%clk 0:03:01]}  dxe4 {[%clk 0:02:46]} 11. Nxe4 {[%clk 0:03:02]}  Nxe4 {[%clk 0:02:46]} 12. Bxe4 {[%clk 0:03:03]}  Bf6 {[%clk 0:02:46]} 13. Qc2 {[%clk 0:03:02]}  Qc7 {[%clk 0:02:41]} 14. Rad1 {[%clk 0:02:59]}  a5 {[%clk 0:02:36]} 15. a3 {[%clk 0:02:58]}  a4 {[%clk 0:02:34]} 16. b4 {[%clk 0:02:58]}  b6 {[%clk 0:02:27]} 17. Rfe1 {[%clk 0:02:47]}  Bb7 {[%clk 0:02:21]} 18. h4 {[%clk 0:02:46]}  Rac8 {[%clk 0:02:19]} 19. Qxa4 {[%clk 0:02:42]}  Qf4 {[%clk 0:02:07]} 20. g3 {[%clk 0:02:20]}  Qc7 {[%clk 0:02:05]} 21. Qc2 {[%clk 0:02:14]}  Rcd8 {[%clk 0:01:57]} 22. c5 {[%clk 0:02:13]}  bxc5 {[%clk 0:01:56]} 23. dxc5 {[%clk 0:02:12]}  Bxb2 {[%clk 0:01:55]} 24. Qxb2 {[%clk 0:02:12]}  Rxd1 {[%clk 0:01:54]} 25. Rxd1 {[%clk 0:02:12]}  f5 {[%clk 0:01:51]} 26. Bc2 {[%clk 0:02:11]}  Ng6 {[%clk 0:01:51]} 27. h5 {[%clk 0:02:08]}  Ne7 {[%clk 0:01:51]} 28. h6 {[%clk 0:01:55]}  gxh6 {[%clk 0:01:50]} 29. Rd6 {[%clk 0:01:36]}  Nd5 {[%clk 0:01:47]} 30. Qe5 {[%clk 0:01:27]}  Qf7 {[%clk 0:01:39]} 31. Nd4 {[%clk 0:01:23]}  f4 {[%clk 0:01:36]} 32. Rxe6 {[%clk 0:01:04]}  Ra8 {[%clk 0:01:27]} 33. Rxh6 {[%clk 0:00:59]}  Rxa3 {[%clk 0:01:14]} 34. Bxh7+ {[%clk 0:00:46]}  Kf8 {[%clk 0:01:08]} 35. Ne6+ {[%clk 0:00:41]}  Ke7 {[%clk 0:01:05]} 36. Qd6+ {[%clk 0:00:28]} 1-0


[Site "https://www.chess.com"]

[Event "Titled Tuesday Blitz November 16 2021"]
[White "Pichot, Alan"]
[Black "Xiong, Jeffery"]
[WhiteFideId "110973"]
[BlackFideId "2047640"]
[WhiteElo "2600"]
[BlackElo "2699"]
[Result "0-1"]
[Round "10"]
[TimeControl "180+1"]
[Date "2021.11.16"]
[WhiteClock "0:00:01"]
[BlackClock "0:00:35"]

1. e4 {[%clk 0:03:00]}  c6 {[%clk 0:03:00]} 2. d4 {[%clk 0:03:00]}  d5 {[%clk 0:03:01]} 3. e5 {[%clk 0:03:00]}  Bf5 {[%clk 0:03:01]} 4. h4 {[%clk 0:03:01]}  h5 {[%clk 0:03:01]} 5. Bd3 {[%clk 0:03:01]}  Bxd3 {[%clk 0:02:59]} 6. Qxd3 {[%clk 0:03:02]}  Qa5+ {[%clk 0:03:00]} 7. b4 {[%clk 0:03:03]}  Qa6 {[%clk 0:02:54]} 8. Qf3 {[%clk 0:03:02]}  e6 {[%clk 0:02:53]} 9. c3 {[%clk 0:03:03]}  Nd7 {[%clk 0:02:52]} 10. a4 {[%clk 0:03:01]}  Ne7 {[%clk 0:02:47]} 11. Ne2 {[%clk 0:03:00]}  Nf5 {[%clk 0:02:46]} 12. Bg5 {[%clk 0:02:47]}  f6 {[%clk 0:02:42]} 13. exf6 {[%clk 0:02:46]}  gxf6 {[%clk 0:02:42]} 14. Bf4 {[%clk 0:02:46]}  O-O-O {[%clk 0:02:36]} 15. Nd2 {[%clk 0:02:40]}  Re8 {[%clk 0:02:35]} 16. b5 {[%clk 0:01:48]}  cxb5 {[%clk 0:02:34]} 17. O-O {[%clk 0:01:43]}  Nxh4 {[%clk 0:02:31]} 18. Qh3 {[%clk 0:01:35]}  Ng6 {[%clk 0:02:32]} 19. axb5 {[%clk 0:01:28]}  Nxf4 {[%clk 0:02:23]} 20. Nxf4 {[%clk 0:01:25]}  Qd6 {[%clk 0:02:24]} 21. Nd3 {[%clk 0:01:04]}  Kb8 {[%clk 0:02:24]} 22. Ra2 {[%clk 0:01:04]}  Rc8 {[%clk 0:01:59]} 23. Rfa1 {[%clk 0:00:51]}  Rxc3 {[%clk 0:01:59]} 24. Rxa7 {[%clk 0:00:51]}  Nb6 {[%clk 0:01:59]} 25. Qf3 {[%clk 0:00:15]}  Be7 {[%clk 0:01:51]} 26. Nc5 {[%clk 0:00:12]}  Rxf3 {[%clk 0:01:43]} 27. Rxb7+ {[%clk 0:00:12]}  Kc8 {[%clk 0:01:43]} 28. Nxf3 {[%clk 0:00:13]}  Qxc5 {[%clk 0:00:51]} 29. dxc5 {[%clk 0:00:06]}  Kxb7 {[%clk 0:00:52]} 30. cxb6 {[%clk 0:00:07]}  Ra8 {[%clk 0:00:53]} 31. Rxa8 {[%clk 0:00:06]}  Kxa8 {[%clk 0:00:54]} 32. Nd4 {[%clk 0:00:07]}  e5 {[%clk 0:00:55]} 33. Nc6 {[%clk 0:00:03]}  Bc5 {[%clk 0:00:52]} 34. Kf1 {[%clk 0:00:01]}  Kb7 {[%clk 0:00:53]} 35. Nd8+ {[%clk 0:00:01]}  Kxb6 {[%clk 0:00:53]} 36. Ne6 {[%clk 0:00:02]}  Kxb5 {[%clk 0:00:52]} 37. Ng7 {[%clk 0:00:01]}  h4 {[%clk 0:00:48]} 38. Nf5 {[%clk 0:00:02]}  Kc4 {[%clk 0:00:48]} 39. Ke2 {[%clk 0:00:02]}  d4 {[%clk 0:00:48]} 40. f3 {[%clk 0:00:02]}  d3+ {[%clk 0:00:48]} 41. Kd2 {[%clk 0:00:03]}  Bb4+ {[%clk 0:00:48]} 42. Kd1 {[%clk 0:00:04]}  Kd5 {[%clk 0:00:37]} 43. Nxh4 {[%clk 0:00:04]}  Ke6 {[%clk 0:00:37]} 44. g4 {[%clk 0:00:04]}  Kd5 {[%clk 0:00:34]} 45. Nf5 {[%clk 0:00:04]}  Bc5 {[%clk 0:00:35]} 46. Kc1 {[%clk 0:00:05]}  Kc4 {[%clk 0:00:35]} 47. Kd1 {[%clk 0:00:05]}  Kc3 {[%clk 0:00:35]} 48. Kc1 {[%clk 0:00:05]}  d2+ {[%clk 0:00:35]} 49. Kd1 {[%clk 0:00:06]}  Kd3 {[%clk 0:00:36]} 50. Ng3 {[%clk 0:00:04]}  Be3 {[%clk 0:00:35]} 51. Ne4 {[%clk 0:00:04]}  Bg5 {[%clk 0:00:36]} 52. Nxf6 {[%clk 0:00:01]}  Bxf6 {[%clk 0:00:35]} 0-1


[Site "https://www.chess.com"]

[Event "Titled Tuesday Blitz November 16 2021"]
[White "Preotu, Razvan"]
[Black "Al Hosani, Omran"]
[WhiteFideId "2613280"]
[BlackFideId "9308733"]
[WhiteElo "2407"]
[BlackElo "2259"]
[Result "0-1"]
[Round "10"]
[TimeControl "180+1"]
[Date "2021.11.16"]
[WhiteClock "0:00:25"]
[BlackClock "0:00:17"]

1. e4 {[%clk 0:03:00]}  c5 {[%clk 0:02:59]} 2. Nf3 {[%clk 0:03:00]}  d6 {[%clk 0:02:59]} 3. d4 {[%clk 0:02:59]}  cxd4 {[%clk 0:02:59]} 4. Nxd4 {[%clk 0:03:00]}  Nf6 {[%clk 0:03:00]} 5. Nc3 {[%clk 0:03:00]}  a6 {[%clk 0:03:00]} 6. Be2 {[%clk 0:03:00]}  e5 {[%clk 0:02:58]} 7. Nb3 {[%clk 0:03:00]}  Be7 {[%clk 0:02:57]} 8. O-O {[%clk 0:02:57]}  O-O {[%clk 0:02:58]} 9. Be3 {[%clk 0:02:57]}  Be6 {[%clk 0:02:58]} 10. Qd3 {[%clk 0:02:57]}  Nbd7 {[%clk 0:02:58]} 11. a4 {[%clk 0:02:57]}  Rc8 {[%clk 0:02:56]} 12. Rfd1 {[%clk 0:02:57]}  Qc7 {[%clk 0:02:47]} 13. Bf3 {[%clk 0:02:55]}  Rfd8 {[%clk 0:02:21]} 14. a5 {[%clk 0:02:55]}  Qc6 {[%clk 0:02:09]} 15. Rd2 {[%clk 0:02:44]}  Bc4 {[%clk 0:01:51]} 16. Nd5 {[%clk 0:02:44]}  Bf8 {[%clk 0:01:05]} 17. Qc3 {[%clk 0:02:25]}  Qb5 {[%clk 0:00:53]} 18. Qb4 {[%clk 0:02:21]}  Nxd5 {[%clk 0:00:45]} 19. Qxb5 {[%clk 0:02:20]}  axb5 {[%clk 0:00:36]} 20. exd5 {[%clk 0:02:18]}  f5 {[%clk 0:00:37]} 21. Nc1 {[%clk 0:02:01]}  e4 {[%clk 0:00:34]} 22. Be2 {[%clk 0:01:58]}  Nf6 {[%clk 0:00:34]} 23. Bg5 {[%clk 0:01:53]}  Be7 {[%clk 0:00:31]} 24. b3 {[%clk 0:01:39]}  Bxe2 {[%clk 0:00:31]} 25. Nxe2 {[%clk 0:01:39]}  Nxd5 {[%clk 0:00:30]} 26. Rxd5 {[%clk 0:01:39]}  Bxg5 {[%clk 0:00:30]} 27. Rxf5 {[%clk 0:01:34]}  Bf6 {[%clk 0:00:30]} 28. Ra2 {[%clk 0:01:33]}  d5 {[%clk 0:00:31]} 29. g4 {[%clk 0:01:29]}  d4 {[%clk 0:00:30]} 30. Ng3 {[%clk 0:01:18]}  d3 {[%clk 0:00:28]} 31. cxd3 {[%clk 0:01:11]}  exd3 {[%clk 0:00:29]} 32. Ne4 {[%clk 0:01:11]}  Rc2 {[%clk 0:00:18]} 33. Ra1 {[%clk 0:00:25]}  Bxa1 {[%clk 0:00:17]} 0-1


[Site "https://www.chess.com"]